fUST/lending_fUST_20250122
["ID","MTS","AMOUNT","RATE_DAILY","PERIOD"]
[349877457,1737475231168,160.0,0.0002347,120]
[349877465,1737475764132,-176.52457019,0.00019107,2]
[349877507,1737475832082,-24.13090511,0.00019107,2]
[349877509,1737475832092,-932.36669884,0.00019862,2]
[349877511,1737475832104,-4530.35443803,0.00019862,2]
[349877514,1737475832116,-2738.03677743,0.00019862,2]
[349877516,1737475832125,-300.0,0.00020071,2]
[349877518,1737475832135,-2136.0,0.00020072,2]
[349877520,1737475832145,-5197.1007852,0.00020095,2]
[349877522,1737475832154,-384.224,0.0002033,2]
[349877524,1737475832164,-198.388422,0.00020447,2]
[349877526,1737475832173,-600.0,0.00020625,2]
[349877528,1737475832183,-518.50374825,0.000213,2]
[349877530,1737475832192,-1342.81959079,0.000213,2]
[349877532,1737475832201,-945.4887273,0.0002137,2]
[349877534,1737475832211,-500.0,0.00021373,2]
[349877536,1737475832221,-500.0,0.00021373,2]
[349877538,1737475832230,-500.0,0.00021373,2]
[349877540,1737475832240,-299.42593336,0.00021399,2]
[349877542,1737475832250,-500.0,0.00021399,2]
[349877544,1737475832260,-500.0,0.00021399,2]
[349877547,1737475832270,-500.0,0.00021399,2]
[349877549,1737475832280,-528.94818665,0.00021399,2]
[349877551,1737475832291,-449.45237843,0.00021399,2]
[349877553,1737475832300,-500.0,0.00021399,2]
[349877555,1737475832310,-346.09203662,0.00021399,2]
[349877557,1737475832320,-500.0,0.00021399,2]
[349877559,1737475832329,-500.0,0.00021399,2]
[349877561,1737475832339,-164.10922405,0.00021399,2]
[349877563,1737475832349,-500.0,0.00021399,2]
[349877565,1737475832358,-500.0,0.00021399,2]
[349877567,1737475832369,-500.0,0.00021399,2]
[349877569,1737475832379,-181.22939925,0.00021399,2]
[349877571,1737475832389,-440.45680668,0.00021399,2]
[349877573,1737475832399,-500.0,0.00021399,2]
[349877575,1737475832408,-500.0,0.00021399,2]
[349877577,1737475832417,-500.0,0.00021399,2]
[349877579,1737475832427,-500.0,0.00021399,2]
[349877581,1737475832436,-400.14458736,0.00021399,2]
[349877583,1737475832446,-494.29498953,0.00021399,2]
[349877585,1737475832455,-500.0,0.00021399,2]
[349877587,1737475832467,-229.96325849,0.00021399,2]
[349877589,1737475832476,-500.0,0.00021399,2]
[349877591,1737475832485,-500.0,0.00021399,2]
[349877593,1737475832495,-500.0,0.00021399,2]
[349877595,1737475832504,-175.78,0.00021399,2]
[349877597,1737475832513,-79999.992171,0.00021399,7]
[349877599,1737475832523,-28899.46826752,0.000214,5]
[349877601,1737475832533,-4445.76770026,0.000214,5]
[349877603,1737475832542,-35503.21518106,0.000214,15]
[349877605,1737475832554,-926.94527892,0.000214,15]
[349877608,1737475832566,-390.52183207,0.000214,15]
[349877610,1737475832577,-434286.96997853,0.000214,15]
[349878101,1737475837932,-6827.18603568,0.000214,15]
[349878104,1737475837945,-14426.42361877,0.000214,15]
[349878105,1737475837957,-71145.54634765,0.000214,15]
[349878107,1737475837968,-2456.0,0.000214,15]
[349878109,1737475837981,-422.86353491,0.000214,15]
[349878112,1737475838004,-676.17413157,0.000214,15]
[349878335,1737475840060,-3973.5122749,0.000214,15]
[349878342,1737475840115,-2028.20415008,0.000214,15]
[349878706,1737475842994,-3059.00292453,0.000214,15]
[349878762,1737475843395,-615.79799988,0.000214,15]
[349878764,1737475843410,-2774.1643857,0.000214,15]
[349878768,1737475843434,-300.0,0.000214,15]
[349879060,1737475846061,-102309.95935048,0.000214,15]
[349882267,1737475944838,189.98425,0.00013973,2]
[349882274,1737476837853,190.77624,0.00013973,2]
[349882276,1737476852096,-196.850792,0.00018355,2]
[349882279,1737476970074,-241.518208,0.00017989,2]
[349882280,1737476970097,-241.518208,0.00018171,2]
[349882281,1737476970119,-168.64362284,0.00019,2]
[349882333,1737477033521,-899.3290914,0.00018711,2]
[349882335,1737477033532,-899.3290914,0.000189,2]
[349882337,1737477033542,-295.71847776,0.0001909,2]
[349882339,1737477033552,-295.71847771,0.00019112,2]
[349882341,1737477033563,-295.71847771,0.00019134,2]
[349882343,1737477033573,-295.71847771,0.00019156,2]
[349882345,1737477033583,-295.71847771,0.00019178,2]
[349882347,1737477033593,-295.71847771,0.000192,2]
[349882349,1737477033604,-250.0,0.00019273,2]
[349882351,1737477033614,-463.8901294,0.00019538,2]
[349882354,1737477033625,-1215.1295236,0.00019657,2]
[349882355,1737477033636,-168.78531184,0.0002,7]
[349882358,1737477033646,-384.168,0.0002033,2]
[349882361,1737477033656,-177.204197,0.00020366,2]
[349882365,1737477033667,-190.77624,0.00020447,2]
[349882368,1737477033676,-300.0,0.00020999,2]
[349882371,1737477033687,-19695.266032,0.00021,2]
[349882373,1737477033702,-3384.60719913,0.00021287,2]
[349882376,1737477033712,-1174.96714195,0.00021298,2]
[349882380,1737477033723,-156.5053507,0.000213,2]
[349882383,1737477033733,-172.83458275,0.000213,2]
[349882385,1737477033743,-500.0,0.00021373,2]
[349882388,1737477033753,-500.0,0.00021373,2]
[349882391,1737477033763,-11226.41912382,0.00021397,5]
[349882394,1737477033773,-180.12711244,0.00021398,2]
[349882398,1737477033786,-156.11,0.00021399,2]
[349882401,1737477033796,-474.88841685,0.00021399,2]
[349882404,1737477033806,-500.0,0.00021399,2]
[349882407,1737477033816,-500.0,0.00021399,2]
[349882410,1737477033826,-505.23647618,0.00021399,2]
[349882413,1737477033836,-500.0,0.00021399,2]
[349882416,1737477033846,-322.84823849,0.00021399,2]
[349882419,1737477033855,-281.19,0.00021399,2]
[349882421,1737477033865,-500.0,0.00021399,2]
[349882423,1737477033874,-500.0,0.00021399,2]
[349882426,1737477033884,-541.49053992,0.00021399,2]
[349882429,1737477033894,-500.0,0.00021399,2]
[349882432,1737477033904,-500.0,0.00021399,2]
[349882435,1737477033914,-308.87750141,0.00021399,2]
[349882438,1737477033924,-500.0,0.00021399,2]
[349882441,1737477033934,-500.0,0.00021399,2]
[349882443,1737477033946,-500.0,0.00021399,2]
[349882446,1737477033956,-500.0,0.00021399,2]
[349882450,1737477033966,-500.0,0.00021399,2]
[349882453,1737477033976,-484.00110099,0.00021399,2]
[349882456,1737477033986,-500.0,0.00021399,2]
[349882459,1737477033996,-500.0,0.00021399,2]
[349882462,1737477034005,-500.0,0.00021399,2]
[349882465,1737477034015,-500.0,0.00021399,2]
[349882468,1737477034025,-500.0,0.00021399,2]
[349882470,1737477034035,-500.0,0.00021399,2]
[349882471,1737477034044,-500.0,0.00021399,2]
[349882473,1737477034055,-500.0,0.00021399,2]
[349882475,1737477034065,-315.0,0.00021399,2]
[349882477,1737477034075,-500.0,0.00021399,2]
[349882479,1737477034085,-500.0,0.00021399,2]
[349882482,1737477034094,-500.0,0.00021399,2]
[349882483,1737477034104,-500.0,0.00021399,2]
[349882485,1737477034114,-500.0,0.00021399,2]
[349882487,1737477034123,-500.0,0.00021399,2]
[349882489,1737477034135,-500.0,0.00021399,2]
[349882491,1737477034146,-460.44489017,0.00021399,2]
[349882494,1737477034158,-500.0,0.00021399,2]
[349882496,1737477034168,-165.37468559,0.00021399,2]
[349882498,1737477034181,-500.0,0.00021399,2]
[349882500,1737477034199,-500.0,0.00021399,2]
[349882503,1737477034215,-500.0,0.00021399,2]
[349882506,1737477034230,-300.0,0.00021399,2]
[349882508,1737477034242,-500.0,0.00021399,2]
[349882510,1737477034258,-500.0,0.00021399,2]
[349882513,1737477034272,-500.0,0.00021399,2]
[349882515,1737477034287,-500.0,0.00021399,2]
[349882518,1737477034302,-500.0,0.00021399,2]
[349882521,1737477034317,-500.0,0.00021399,2]
[349882523,1737477034333,-432.05180164,0.00021399,2]
[349882526,1737477034347,-500.0,0.00021399,2]
[349882528,1737477034360,-169.267,0.00021399,2]
[349882531,1737477034374,-21085.01323019,0.000214,5]
[349882533,1737477034389,-2331.78318924,0.000214,5]
[349882535,1737477034403,-153898.90253682,0.000214,15]
[349882538,1737477034420,-598.99623134,0.000214,15]
[349882542,1737477034443,-455.8688184,0.000214,15]
[349882939,1737477038416,-196.850792,0.00018524,2]
[349882941,1737477038428,-68570.94067022,0.000214,15]
[349882943,1737477038446,-9989.35674818,0.000214,15]
[349882946,1737477038470,-1669.27828073,0.000214,15]
[349882949,1737477038485,-42183.95922737,0.000214,15]
[349882952,1737477038501,-32915.0632059,0.000214,15]
[349882954,1737477038516,-423.98,0.000214,15]
[349882957,1737477038528,-676.66337925,0.000214,15]
[349882997,1737477038734,-8748.15082564,0.000214,15]
[349883208,1737477040867,-35828.35393535,0.000214,15]
[349883210,1737477040879,-41093.46665306,0.000214,15]
[349883213,1737477040899,-20478.5017756,0.000214,15]
[349883217,1737477040923,-736.55332444,0.000214,15]
[349883221,1737477040962,-2590.75243186,0.000214,15]
[349885814,1737477764275,1988.83532721,0.00015051,2]
[349885816,1737477828407,191.251901,0.00013973,2]
[349885819,1737478161110,-294.0,0.0001881,2]
[349885853,1737478232600,-736.21497411,0.000189,2]
[349886400,1737478238301,-28.79067793,0.000189,2]
[349886402,1737478238311,-765.00565204,0.00019107,2]
[349886404,1737478238321,-226.778783,0.00019846,2]
[349886406,1737478238330,-521.10331995,0.0002,4]
[349886416,1737478238406,-2673.33662074,0.0002,4]
[349886418,1737478238418,-3805.56005931,0.0002,4]
[349886420,1737478238427,-300.0,0.00020186,2]
[349886422,1737478238436,-1466.39512822,0.00020187,2]
[349886424,1737478238448,-4964.85283528,0.00020187,2]
[349886426,1737478238457,-383.235,0.0002033,2]
[349886428,1737478238466,-191.251901,0.00020447,2]
[349886430,1737478238476,-166.17,0.00020739,2]
[349886432,1737478238488,-999.6286417,0.00021,21]
[349886439,1737478238522,-0.3713583,0.00021,21]
[349886441,1737478238533,-2756.0402527,0.00021136,2]
[349886443,1737478238546,-3152.94569289,0.00021136,2]
[349886445,1737478238558,-377.66273007,0.00021136,2]
[349886921,1737478243250,-2249.71,0.00021136,2]
[349887833,1737478932815,189.724667,0.00013973,2]
[349887835,1737479246125,-368.19894914,0.00018286,2]
[349887836,1737479246149,-126.17606938,0.00019,2]
[349887837,1737479345192,-176.52457019,0.0001881,2]
[349887838,1737479345216,-305.30182094,0.00019036,2]
[349887848,1737479432572,-281.67056338,0.00019036,2]
[349887849,1737479432582,-55.17964827,0.0002,2]
[349887850,1737479432680,-570.07873272,0.0002,2]
[349887851,1737479432692,-1568.74161901,0.0002,2]
[349887852,1737479432701,-226.778783,0.00020104,2]
[349887853,1737479432710,-366.998,0.0002033,2]
[349887854,1737479432719,-1457.88980271,0.00020442,7]
[349887855,1737479432729,-189.724667,0.00020447,2]
[349887856,1737479432738,-300.0,0.00020635,2]
[349887857,1737479432747,-2315.0,0.00020636,2]
[349887858,1737479432757,-467.78383431,0.00020702,2]
[349887859,1737479432766,-1141.06501809,0.00020971,2]
[349887860,1737479432775,-1000.0,0.00021216,2]
[349887861,1737479432784,-1000.0,0.00021238,2]
[349887862,1737479432793,-169.21,0.00021299,2]
[349887863,1737479432802,-1239.13277485,0.000213,2]
[349887864,1737479432810,-189.282435,0.0002135,2]
[349887865,1737479432819,-151.0,0.00021398,2]
[349887866,1737479432828,-138.79949331,0.00021399,2]
[349887895,1737479438469,-391.31492288,0.000192,2]
[349887897,1737479438479,-311.05915016,0.00021292,6]
[349887899,1737479438488,-303.17127934,0.00021399,2]
[349887901,1737479438497,-172.85735647,0.00021399,2]
[349887903,1737479438507,-166.03277662,0.00021399,2]
[349887905,1737479438516,-184.20721414,0.00021399,2]
[349887907,1737479438525,-162.754,0.00021399,2]
[349887909,1737479438535,-160.0,0.00021399,2]
[349887911,1737479438543,-1298.00330039,0.00021399,5]
[349887913,1737479438555,-500.0,0.00021399,5]
[349888430,1737479443454,-196.0,0.00021059,2]
[349888432,1737479443464,-395.0,0.00021143,2]
[349888434,1737479443473,-151.0,0.00021379,2]
[349888436,1737479443482,-151.0,0.00021379,2]
[349888438,1737479443492,-151.0,0.00021379,2]
[349888440,1737479443501,-3682.13468578,0.00021399,5]
[349888443,1737479443516,-1155.0000002,0.00021399,5]
[349890412,1737479938115,187.418961,0.00013973,2]
[349890423,1737480369537,10000.0,0.00024,120]
[349890424,1737480421417,10000.0,0.00024,120]
[349890425,1737480444174,-196.850792,0.00019106,2]
[349890426,1737480444196,-197.47440831,0.00019299,2]
[349890434,1737480501199,3443.79927326,0.000125,2]
[349890437,1737480512670,270.26421999,0.00014114,2]
[349890438,1737480514839,276.14474022,0.0001,2]
[349890441,1737480524135,843.47209446,0.00015,2]
[349890442,1737480525015,566.84956518,0.000149,2]
[349890443,1737480525331,1000.0,0.0001,2]
[349890449,1737480561080,-241.518208,0.00015682,2]
[349890450,1737480561102,-241.518208,0.0001584,2]
[349890451,1737480561122,-4341.47533141,0.00016,2]
[349890495,1737480632900,-132.7659978,0.00019299,2]
[349890497,1737480632911,-351.953,0.0002033,2]
[349890499,1737480632921,-187.418961,0.00020447,2]
[349890501,1737480632931,-300.0,0.00020999,2]
[349890504,1737480632941,-1135.3489554,0.00021,2]
[349890513,1737480633027,-7144.3853808,0.00021,2]
[349890515,1737480633038,-264.00836377,0.00021,2]
[349890517,1737480633049,-4801.40490866,0.00021,2]
[349890520,1737480633060,-1750.38834426,0.00021,2]
[349890522,1737480633071,-1352.725071,0.0002118,5]
[349890524,1737480633081,-1000.0,0.000212,5]
[349890526,1737480633091,-1000.0,0.0002122,5]
[349890528,1737480633102,-1000.0,0.0002124,5]
[349890530,1737480633112,-1000.0,0.0002126,5]
[349890532,1737480633121,-151.0,0.00021277,2]
[349890534,1737480633130,-1000.0,0.0002128,5]
[349890536,1737480633141,-1000.0,0.000213,5]
[349890538,1737480633151,-172.83458279,0.000213,2]
[349890540,1737480633160,-152.0,0.00021303,2]
[349890542,1737480633170,-169.21,0.00021319,2]
[349890544,1737480633180,-1000.0,0.0002132,5]
[349890546,1737480633190,-1000.0,0.0002134,5]
[349890548,1737480633200,-1000.0,0.0002136,5]
[349890550,1737480633210,-259.342,0.00021379,2]
[349890552,1737480633219,-579.938,0.00021379,2]
[349890554,1737480633230,-2060.0,0.00021379,2]
[349890556,1737480633242,-2306.0,0.00021379,2]
[349890558,1737480633252,-395.0,0.00021379,2]
[349890560,1737480633261,-1000.0,0.0002138,5]
[349890562,1737480633272,-151.0,0.00021398,2]
[349890565,1737480633282,-162.465,0.00021398,2]
[349890567,1737480633292,-4443.93457921,0.00021398,5]
[349890569,1737480633306,-43266.51632753,0.00021399,5]
[349890571,1737480633316,-500.0,0.00021399,2]
[349890572,1737480633326,-500.0,0.00021399,2]
[349890575,1737480633337,-500.0,0.00021399,2]
[349890577,1737480633347,-172.22530795,0.00021399,2]
[349890579,1737480633356,-500.0,0.00021399,2]
[349890581,1737480633366,-500.0,0.00021399,2]
[349890583,1737480633376,-500.0,0.00021399,2]
[349890585,1737480633386,-500.0,0.00021399,2]
[349890587,1737480633395,-404.61032736,0.00021399,2]
[349890589,1737480633404,-500.0,0.00021399,2]
[349890591,1737480633413,-403.77001335,0.00021399,2]
[349890593,1737480633424,-500.0,0.00021399,2]
[349890595,1737480633434,-500.0,0.00021399,2]
[349890597,1737480633445,-500.0,0.00021399,2]
[349890599,1737480633455,-300.0,0.00021399,2]
[349890601,1737480633465,-651.98628243,0.00021399,2]
[349890603,1737480633476,-502.54391737,0.00021399,2]
[349890605,1737480633487,-190.05545624,0.00021399,2]
[349890606,1737480633498,-284285.48010742,0.000214,15]
[349890607,1737480633511,-304.04020595,0.000214,15]
[349891079,1737480884695,176.571846,0.00013973,2]
[349891083,1737481635087,-220.16027074,0.000189,2]
[349891084,1737481635108,-165.9697274,0.0002023,2]
[349891085,1737481635129,-165.96972738,0.00020253,2]
[349891086,1737481635152,-165.96972738,0.00020277,2]
[349891087,1737481635173,-165.96972738,0.000203,2]
[349891088,1737481635196,-165.96972738,0.00020324,2]
[349891089,1737481635219,-337.182,0.0002033,2]
[349891090,1737481635241,-70.83004247,0.00020347,2]
[349891127,1737481832063,-168.64362284,0.00020245,4]
[349891128,1737481832072,-95.13968491,0.00020347,2]
[349891129,1737481832083,-176.571846,0.00020447,2]
[349891130,1737481832092,-15.64717404,0.00020625,2]
[349891711,1737481842983,-484.35282596,0.00020625,2]
[349891713,1737481842993,-151.0,0.00020973,2]
[349891715,1737481843004,-151.0,0.00020973,2]
[349891717,1737481843014,-151.0,0.00020973,2]
[349891719,1737481843024,-170.04,0.00020973,2]
[349891721,1737481843034,-300.0,0.00020999,2]
[349891723,1737481843044,-159.414847,0.00021,2]
[349891725,1737481843053,-155.1344185,0.00021,2]
[349891727,1737481843063,-753.25790874,0.00021,2]
[349892003,1737481845806,-7.95109846,0.00021,2]
[349892005,1737481845817,-215.2109039,0.00021,2]
[349892007,1737481845827,-307.7128455,0.00021,2]
[349892009,1737481845837,-154.1449863,0.00021,2]
[349892011,1737481845850,-169.21,0.00021,2]
[349892013,1737481845859,-151.0,0.00021052,2]
[349892015,1737481845869,-151.0,0.00021052,2]
[349892017,1737481845878,-151.0,0.00021052,2]
[349892019,1737481845888,-151.0,0.00021052,2]
[349892021,1737481845897,-151.0,0.00021052,2]
[349892023,1737481845907,-151.0,0.00021052,2]
[349892025,1737481845917,-151.0,0.00021052,2]
[349892027,1737481845927,-151.0,0.00021052,2]
[349892029,1737481845936,-151.0,0.00021052,2]
[349892031,1737481845946,-151.0,0.00021052,2]
[349892033,1737481845955,-151.0,0.00021052,2]
[349892035,1737481845965,-151.0,0.00021052,2]
[349892038,1737481845974,-151.0,0.00021052,2]
[349892041,1737481845984,-151.0,0.00021052,2]
[349892044,1737481845994,-151.0,0.00021052,2]
[349892046,1737481846004,-61.26383584,0.00021052,2]
[349893862,1737481889010,187.839752,0.00013973,2]
[349893866,1737482777197,204.282046,0.00013973,2]
[349893875,1737482976373,167.307158,0.00018986,2]
[349893876,1737482991621,167.307158,0.00018986,2]
[349893877,1737483006811,167.307158,0.00018986,2]
[349893878,1737483023063,167.307158,0.00018986,2]
[349893931,1737483032304,-167.307158,0.00019178,2]
[349893933,1737483032314,-153.23190892,0.00019333,2]
[349893935,1737483032324,-153.23190892,0.00019381,2]
[349893937,1737483032334,-153.23190892,0.00019428,2]
[349893940,1737483032344,-1486.3865146,0.00019433,2]
[349893942,1737483032354,-250.0,0.00019528,2]
[349893944,1737483032365,-225.86351,0.00019975,2]
[349893946,1737483032375,-162.1301093,0.00020143,2]
[349893948,1737483032385,-249.26,0.00020239,2]
[349893949,1737483032394,-323.195,0.0002033,2]
[349893951,1737483032404,-204.282046,0.00020447,2]
[349893954,1737483032414,-154.1449863,0.000205,2]
[349893955,1737483032424,-1449.53506406,0.00020538,2]
[349893958,1737483032435,-300.0,0.00020565,2]
[349893959,1737483032444,-2221.96728961,0.00020565,5]
[349893962,1737483032454,-23799.92108546,0.00020566,5]
[349893964,1737483032465,-2309.0,0.00020566,2]
[349893967,1737483032474,-153.7674488,0.00020578,2]
[349893970,1737483032484,-154.1449863,0.000206,2]
[349893972,1737483032495,-215.2109039,0.000206,2]
[349893975,1737483032504,-214.8527513,0.000206,2]
[349893978,1737483032514,-154.1449863,0.000206,2]
[349893983,1737483032524,-9498.54145909,0.00020697,2]
[349893987,1737483032534,-154.0,0.00020749,2]
[349893991,1737483032544,-154.0,0.00020749,2]
[349893993,1737483032554,-154.0,0.00020749,2]
[349893998,1737483032565,-154.0,0.00020749,2]
[349894000,1737483032575,-154.0,0.00020749,2]
[349894003,1737483032585,-154.0,0.00020749,2]
[349894006,1737483032595,-154.0,0.00020749,2]
[349894010,1737483032606,-154.0,0.00020749,2]
[349894012,1737483032618,-296.55,0.00020749,2]
[349894015,1737483032628,-151.0,0.0002077,2]
[349894018,1737483032638,-151.0,0.0002077,2]
[349894021,1737483032649,-151.0,0.0002077,2]
[349894025,1737483032660,-151.0,0.0002077,2]
[349894028,1737483032669,-289.0,0.0002077,2]
[349894031,1737483032679,-166.0,0.00020964,2]
[349894033,1737483032690,-1449.535064,0.00021074,2]
[349894034,1737483032699,-153.0,0.00021149,2]
[349894036,1737483032709,-153.0,0.00021149,2]
[349894038,1737483032719,-153.0,0.00021149,2]
[349894041,1737483032728,-226.33,0.00021149,2]
[349894043,1737483032739,-163.657,0.00021149,2]
[349894045,1737483032748,-270.92592,0.00021151,15]
[349894047,1737483032758,-189.282435,0.00021183,2]
[349894048,1737483032767,-2626.37987608,0.000213,2]
[349894050,1737483032777,-8624.40518208,0.00021306,2]
[349894053,1737483032787,-247.0,0.00021379,2]
[349894055,1737483032796,-182.239,0.00021379,2]
[349894057,1737483032806,-150.648,0.00021379,2]
[349894059,1737483032815,-250.0,0.00021379,2]
[349894061,1737483032825,-248.991,0.00021379,2]
[349894063,1737483032835,-252.473,0.00021379,2]
[349894065,1737483032845,-2060.0,0.00021379,2]
[349894067,1737483032854,-536.0,0.00021379,2]
[349894069,1737483032867,-2310.0,0.00021379,2]
[349894071,1737483032877,-1667.265272,0.0002138,5]
[349894073,1737483032887,-151.0,0.00021387,2]
[349894075,1737483032897,-312.96,0.00021389,3]
[349894077,1737483032906,-156.48,0.00021389,3]
[349894079,1737483032916,-469.44,0.00021389,3]
[349894081,1737483032925,-834.57,0.00021389,3]
[349894083,1737483032936,-500.0,0.00021399,2]
[349894085,1737483032946,-500.0,0.00021399,2]
[349894087,1737483032955,-500.0,0.00021399,2]
[349894089,1737483032965,-500.0,0.00021399,2]
[349894091,1737483032975,-500.0,0.00021399,2]
[349894093,1737483032985,-210.81730611,0.00021399,2]
[349894095,1737483032995,-500.0,0.00021399,2]
[349894097,1737483033006,-500.00000001,0.00021399,2]
[349894099,1737483033015,-500.0,0.00021399,2]
[349894101,1737483033025,-164.52338039,0.00021399,2]
[349894103,1737483033035,-500.0,0.00021399,2]
[349894105,1737483033046,-500.0,0.00021399,2]
[349894107,1737483033057,-500.0,0.00021399,2]
[349894109,1737483033067,-500.0,0.00021399,2]
[349894111,1737483033079,-500.0,0.00021399,2]
[349894113,1737483033088,-500.0,0.00021399,2]
[349894115,1737483033100,-500.0,0.00021399,2]
[349894117,1737483033113,-500.0,0.00021399,2]
[349894119,1737483033125,-500.0,0.00021399,2]
[349894121,1737483033135,-500.0,0.00021399,2]
[349894123,1737483033145,-500.0,0.00021399,2]
[349894125,1737483033155,-500.0,0.00021399,2]
[349894127,1737483033165,-500.0,0.00021399,2]
[349894129,1737483033177,-500.0,0.00021399,2]
[349894131,1737483033188,-500.0,0.00021399,2]
[349894133,1737483033198,-500.0,0.00021399,2]
[349894135,1737483033209,-500.0,0.00021399,2]
[349894137,1737483033219,-500.0,0.00021399,2]
[349894140,1737483033230,-500.0,0.00021399,2]
[349894142,1737483033242,-582.87688597,0.00021399,2]
[349894144,1737483033253,-500.0,0.00021399,2]
[349894146,1737483033263,-500.0,0.00021399,2]
[349894148,1737483033274,-500.0,0.00021399,2]
[349894150,1737483033285,-500.0,0.00021399,2]
[349894152,1737483033296,-500.0,0.00021399,2]
[349894153,1737483033307,-500.0,0.00021399,2]
[349894156,1737483033319,-500.0,0.00021399,2]
[349894158,1737483033331,-500.0,0.00021399,2]
[349894160,1737483033342,-500.0,0.00021399,2]
[349894162,1737483033355,-518.2,0.00021399,2]
[349894164,1737483033370,-500.0,0.00021399,2]
[349894166,1737483033381,-500.0,0.00021399,2]
[349894167,1737483033392,-500.0,0.00021399,2]
[349894170,1737483033404,-500.0,0.00021399,2]
[349894172,1737483033417,-500.0,0.00021399,2]
[349894174,1737483033429,-500.0,0.00021399,2]
[349894176,1737483033441,-500.0,0.00021399,2]
[349894178,1737483033453,-500.0,0.00021399,2]
[349894180,1737483033464,-500.0,0.00021399,2]
[349894182,1737483033475,-500.0,0.00021399,2]
[349894183,1737483033485,-500.0,0.00021399,2]
[349894186,1737483033497,-500.0,0.00021399,2]
[349894188,1737483033508,-550.0,0.00021399,2]
[349894190,1737483033518,-500.0,0.00021399,2]
[349894192,1737483033530,-500.0,0.00021399,2]
[349894194,1737483033541,-500.0,0.00021399,2]
[349894196,1737483033551,-500.0,0.00021399,2]
[349894198,1737483033562,-500.0,0.00021399,2]
[349894200,1737483033575,-500.0,0.00021399,2]
[349894202,1737483033588,-500.0,0.00021399,2]
[349894204,1737483033599,-500.0,0.00021399,2]
[349894206,1737483033615,-338.30881249,0.00021399,2]
[349894208,1737483033627,-500.0,0.00021399,2]
[349894210,1737483033639,-500.0,0.00021399,2]
[349894211,1737483033650,-500.0,0.00021399,2]
[349894212,1737483033660,-500.0,0.00021399,2]
[349894213,1737483033671,-500.0,0.00021399,2]
[349894214,1737483033682,-173.30493992,0.00021399,2]
[349894215,1737483033692,-290.69263301,0.00021399,2]
[349894216,1737483033703,-541.76652006,0.00021399,2]
[349894217,1737483033714,-151.0,0.00021399,2]
[349894218,1737483033725,-240.806892,0.00021399,2]
[349894219,1737483033736,-240.806892,0.00021399,2]
[349894220,1737483033745,-151.0,0.00021399,2]
[349894221,1737483033755,-151.0,0.00021399,2]
[349894222,1737483033766,-151.0,0.00021399,2]
[349894223,1737483033776,-151.0,0.00021399,2]
[349894224,1737483033786,-500.0,0.00021399,2]
[349894225,1737483033796,-191.653709,0.00021399,2]
[349894226,1737483033806,-151.0,0.00021399,2]
[349894227,1737483033817,-151.0,0.00021399,2]
[349894228,1737483033827,-151.0,0.00021399,2]
[349894234,1737483033927,-151.0,0.00021399,2]
[349894236,1737483033938,-151.0,0.00021399,2]
[349894238,1737483033948,-151.0,0.00021399,2]
[349894241,1737483033962,-188.06855,0.00021399,2]
[349894243,1737483033972,-234.919456,0.00021399,2]
[349894245,1737483033984,-234.919456,0.00021399,2]
[349894247,1737483033995,-154.655415,0.00021399,2]
[349894249,1737483034007,-154.655415,0.00021399,2]